Cogmind - Beta 15 @@@ ROGUE MODE // 2025.05.13 @ 05:40:27 Player: CanadianCogs Result: Destroyed by B-75 Beast with Heavy Plasma Cannon Performance ------------- Evolutions (2) 1000 Regions Visited (4) 800 Robots Destroyed (11) 55 Value Destroyed (273) 273 Prototype IDs (2) 40 Alien Tech Used (0) 0 Bonus (200) 200 TOTAL SCORE: 2368 Bonus ------- Entered Garrisons 200 Cogmind --------- Core Integrity 0/550 Matter 235/300 Energy 63/100 System Corruption 0% Temperature Cool (12) Movement Core (50) Location -8/Garrison Parts ------- > --- POWER (1) -------- (None) > --- PROPULSION (2) --- (None) > --- UTILITY (5) ------ Hacking Suite > --- WEAPON (3) ------- Scythe > --- INVENTORY (5) ---- Light Nuclear Core Peak State ------------ > --- POWER ------------ (None) > --- PROPULSION ------- Surge Thruster Surge Thruster > --- UTILITY ---------- Reaction Control System Hacking Suite > --- WEAPON ----------- Scythe Blade Saw Blade Saw > --- INVENTORY -------- Light Nuclear Core Datajack [Rating: 21] Favorites ----------- Power Ion Engine Engine Ion Engine Propulsion Compact Wheel Leg Makeshift Leg Wheel Compact Wheel Flight Unit Surge Thruster Utility Small Storage Unit Device Seismic Detector Storage Small Storage Unit Hackware Hacking Suite Protection Improved Light Armor Plating Weapon Assault Rifle Energy Gun Subdweller Laser Energy Cannon Ion Cannon Ballistic Gun Assault Rifle Slashing Weapon Blade Saw Build | -11 -10 -10 -8 -8 ------- Run | Yrd Mat Sub Mat Gar Slots Evolved 4 | . . . 4 . Power . | . . . . . Propulsion . | . . . . . Utility 3 | . . . 3 . Weapon 1 | . . . 1 . Parts Attached 24 | 7 . . 8 9 Power 1 | 1 . . . . Engine 1 | 1 . . . . Core . | . . . . . Reactor . | . . . . . Propulsion 8 | 2 . . 1 5 Treads . | . . . . . Leg 1 | . . . 1 . Wheel 2 | 2 . . . . Hover . | . . . . . Flight 5 | . . . . 5 Utility 7 | 2 . . 4 1 Device 3 | 1 . . 1 1 Storage 1 | 1 . . . . Processor . | . . . . . Hackware 2 | . . . 2 . Protection 1 | . . . 1 . Artifact . | . . . . . Weapon 8 | 2 . . 3 3 Energy Gun 1 | . . . 1 . Energy Cannon 1 | . . . 1 . Ballistic Gun 3 | 2 . . 1 . Ballistic Cannon . | . . . . . Launcher . | . . . . . Special Weapon . | . . . . . Impact Weapon . | . . . . . Slashing Weapon 3 | . . . . 3 Piercing Weapon . | . . . . . Special Melee Weapon . | . . . . . Unidentified Prototypes . | . . . . . Parts Lost 14 | . . . 5 9 Power 1 | . . . 1 . Propulsion 5 | . . . . 5 Utility 5 | . . . 3 2 Weapon 3 | . . . 1 2 Highest Loss Streak 8 | . . . 3 8 To Critical Strikes . | . . . . . Average Backups 2 | . 1 1 4 4 Power . | . . . . . Propulsion 1 | . . . 2 2 Utility . | . 1 1 . . Weapon . | . . . 1 . Tool/Special . | . . . . . Unused Backups 5 | . . . . 5 Power 1 | . . . . 1 Propulsion 2 | . . . . 2 Utility . | . . . . . Weapon . | . . . . . Tool/Special 2 | . . . . 2 Average Slot Usage (%) 83 | . 100 100 83 48 Engine 7 | . 14 14 4 . Leg 1 | . . . 3 2 Wheel 16 | . 28 28 11 . Flight 2 | . . . . 11 Device 10 | . 14 14 12 . Storage 9 | . 14 14 9 2 Hackware 4 | . . . 7 9 Protection 3 | . . . 8 1 Energy Gun 1 | . . . 3 . Energy Cannon 2 | . . . 5 2 Ballistic Gun 18 | . 28 28 17 2 Slashing Weapon 3 | . . . . 16 Peak Build Rating 21 | 7 7 7 20 21 Average Rating 12 | 4 7 7 17 16 On Entrance 7 | . 7 7 7 17 Naked Turns . | . . . . . Heaviest Build 24 | 14 14 14 24 19 Greatest Support 26 | 26 26 26 26 20 Greatest Overweight (x) 1 | . . . . 1 Average Overweight (x) . | . . . . . Largest Inventory Capacity 8 | 8 8 8 8 8 Average Capacity 7 | 7 8 8 8 5 Most Carried 7 | 1 1 3 7 7 Average Carried 2 | . 1 1 5 4 Final Capacity 8 | 8 8 8 8 5 Final Carried 6 | 1 1 3 6 1 Class Distribution -------------------- 57% | Mutant 24% | Tank 13% | Scavenger-Sprinter Dominant Class ---------------- Mutant | -10/Materials Mutant | -10/Subcaves Tank | -8/Materials Scavenger-Sprinter | -8/Garrison Resources | -11 -10 -10 -8 -8 ----------- Run | Yrd Mat Sub Mat Gar Matter Collected 467 | 194 . 9 219 45 Remotely . | . . . . . Salvage Created 410 | 121 . . 237 52 Parts 30 | 7 . . 11 12 Haulers Intercepted . | . . . . . Recyclers Shooed 1 | 1 . . . . Parts Field Recycled . | . . . . . Retrieved Matter . | . . . . . Parts Self-Destructed . | . . . . . Prevented . | . . . . . Kills | -11 -10 -10 -8 -8 ------- Run | Yrd Mat Sub Mat Gar Combat Hostiles Destroyed 7 | . . . 4 3 Guns 1 | . . . 1 . Cannons 6 | . . . 3 3 Classes Destroyed 6 | 2 . . 3 1 Builder 1 | . . . 1 . Tunneler 1 | 1 . . . . Recycler 1 | 1 . . . . Operator 1 | . . . 1 . Cutter 3 | . . . . 3 Grunt 4 | . . . 4 . Best Kill Streak 5 | 2 . . 5 3 Combat Bots Only 4 | . . . 4 3 Max Kills in Single Turn 2 | 1 . . 2 1 Gunslinging . | . . . . . Exploded . | . . . . . Melee . | . . . . . Uniques/NPCs Destroyed . | . . . . . Combat | -11 -10 -10 -8 -8 -------- Run | Yrd Mat Sub Mat Gar Hostile Shots Fired 177 | . . . 67 110 Missed 57 | . . . 15 42 Hits 120 | . . . 52 68 Melee 6 | . . . 2 4 Projectile 114 | . . . 50 64 Critical Strikes 7 | . . . 4 3 Damage Taken 1643 | . . . 831 812 Core 553 | . . . 115 438 Absorbed by Shields 123 | . . . . 123 Core Remaining (%) 100 | 100 . 100 . . Volleys Fired 41 | 8 . . 29 4 Largest 3 | 2 . . 3 2 Hottest 103 | 40 . . 103 83 Shots Fired 96 | 16 . . 72 8 Gun 70 | 16 . . 50 4 Cannon 26 | . . . 22 4 Launcher . | . . . . . Special . | . . . . . Kinetic 64 | 16 . . 44 4 Thermal 32 | . . . 28 4 Explosive . | . . . . . Electromagnetic . | . . . . . Robot Hit Streak 8 | 3 . . 8 3 Robot Miss Streak 5 | 2 . . 5 1 Penetration Max . | . . . . . Secondary Targets . | . . . . . Shots Hit Robots 50 | 9 . . 36 5 Core Hits 19 | 3 . . 13 3 Critical Kills . | . . . . . Critical Parts Destroyed . | . . . . . Critical Strikes 1 | . . . . 1 Sever 1 | . . . . 1 Melee Attacks 2 | . . . . 2 Impact . | . . . . . Slashing 2 | . . . . 2 Piercing . | . . . . . Sneak Attacks . | . . . . . Combat Hostiles . | . . . . . Follow-up Attacks . | . . . . . Damage Inflicted 812 | 85 . . 608 119 Guns 430 | 85 . . 332 13 Cannons 344 | . . . 276 68 Explosions . | . . . . . Melee 38 | . . . . 38 Ramming . | . . . . . Kinetic 344 | 85 . . 246 13 Thermal 430 | . . . 362 68 Explosive . | . . . . . Electromagnetic . | . . . . . Impact . | . . . . . Slashing 38 | . . . . 38 Piercing . | . . . . . Highest Corruption . | . . . . . Average Corruption . | . . . . . Corruption Purged . | . . . . . Corruption Blocked . | . . . . . Overload Shots . | . . . . . Overflow Damage . | . . . . . Projectiles . | . . . . . Explosions . | . . . . . Melee . | . . . . . Knockbacks . | . . . . . Impact . | . . . . . Kinetic . | . . . . . Secondary . | . . . . . Self-Inflicted Damage . | . . . . . Shots . | . . . . . Rammed . | . . . . . Targets Rammed . | . . . . . Kicked . | . . . . . Crushed . | . . . . . Highest Temperature 342 | . . . 342 24 Average Temperature 120 | . . . 131 12 Received Heat Transfer 648 | . . . 522 126 Siege Activations . | . . . . . Martial Activations . | . . . . . Shielding Activations . | . . . . . Robots Disrupted . | . . . . . Combat Hostiles . | . . . . . Robots Corrupted . | . . . . . Combat Hostiles . | . . . . . Parts Fried . | . . . . . Impact Corruptions . | . . . . . Robots Melted . | . . . . . Combat Hostiles . | . . . . . Parts Melted 1 | . . . 1 . Heat Transferred 618 | . . . 507 111 Parts Sabotaged . | . . . . . Parts Stolen . | . . . . . Parts Stripped . | . . . . . Power Chain Reactions . | . . . . . Alert | -11 -10 -10 -8 -8 ------- Run | Yrd Mat Sub Mat Gar Maximum Alert Level . | . . . . . Low Security (%) 100 | 100 100 . 100 100 Level 1 . | . . . . . Level 2 . | . . . . . Level 3 . | . . . . . Level 4 . | . . . . . Level 5 . | . . . . . High Security . | . . . . . Max Security . | . . . . . Peak Influence 140 | 5 55 . 66 140 Initial . | . . . . . Average 20 | 1 9 . 16 51 Influence Increases 421 | 10 65 . 126 220 Destroy 0b10 Robot/C 140 | . . . 80 60 Destroy 0b10 Robot/NC 20 | 10 . . 10 . Destroy Leader 20 | . . . 10 10 Successful Hack 25 | . 5 . 20 . Select Force Hacks 60 | . 60 . . . Destroy Structure 6 | . . . 6 . Lose Combat Pursuer 150 | . . . . 150 Influence Decreases 291 | 10 65 . 126 90 Time Decay 180 | 10 65 . 105 . Lost Part 111 | . . . 21 90 Squads Dispatched 6 | . 3 . 3 . Investigation 3 | . 2 . 1 . Extermination . | . . . . . Reinforcement 1 | . 1 . . . Assault . | . . . . . Garrison 2 | . . . 2 . Intercept . | . . . . . Searches Triggered . | . . . . . Construction Impeded . | . . . . . Haulers Reinforced . | . . . . . Active Scanning Responses . | . . . . . Cargo Convoy Interrupts . | . . . . . Stealth | -11 -10 -10 -8 -8 --------- Run | Yrd Mat Sub Mat Gar Distress Signals 1 | . . . 1 . Communications Jammed . | . . . . . Distress Signals . | . . . . . Times Spotted 29 | . . . 8 21 Peak Tracking Total 12 | . . . 4 12 Tactical Retreats 2 | . . . . 2 Traps | -11 -10 -10 -8 -8 ------- Run | Yrd Mat Sub Mat Gar Traps Triggered 5 | . . . . 5 Indirectly . | . . . . . Trap Hack Attempts . | . . . . . Triggered . | . . . . . Disarmed . | . . . . . Reprogrammed . | . . . . . Reused . | . . . . . Traps Extracted . | . . . . . Installed . | . . . . . Triggered . | . . . . . Machines | -11 -10 -10 -8 -8 ---------- Run | Yrd Mat Sub Mat Gar Machines Disabled . | . . . . . Max in Single Turn . | . . . . . Machines Repaired . | . . . . . Machines Dismantled . | . . . . . Machines Sabotaged . | . . . . . Overloaded Fab Kills . | . . . . . Hacking | -11 -10 -10 -8 -8 --------- Run | Yrd Mat Sub Mat Gar Machines Accessed 6 | . 3 . 3 . Terminals 2 | . 1 . 1 . Fabricators . | . . . . . Repair Stations . | . . . . . Recycling Units 2 | . 2 . . . Scanalyzers 1 | . . . 1 . Garrison Access 1 | . . . 1 . Total Hacks 17 | . 11 . 6 . Successful 12 | . 6 . 6 . Failed 4 | . 4 . . . Catastrophic . | . . . . . Database Lockouts 1 | . 1 . . . Manual 11 | . 9 . 2 . Terminals 9 | . 6 . 3 . Fabricators . | . . . . . Repair Stations . | . . . . . Recycling Units 5 | . 5 . . . Scanalyzers 2 | . . . 2 . Garrison Access 1 | . . . 1 . Terminal Hacks 5 | . 3 . 2 . Record 1 | . 1 . . . Robot Analysis 2 | . 1 . 1 . Prototype ID Bank 1 | . . . 1 . Zone Layout 1 | . 1 . . . Fabricator Hacks . | . . . . . Repair Station Hacks . | . . . . . Recycling Unit Hacks . | . . . . . Scanalyzer 2 | . . . 2 . Insert Component 1 | . . . 1 . Analyze 1 | . . . 1 . Garrison Access Hacks 1 | . . . 1 . Unlock Access 1 | . . . 1 . Unauthorized Hacks 4 | . 3 . 1 . Terminals 2 | . 1 . 1 . Botnet 2 | . 1 . 1 . Fabricators . | . . . . . Repair Stations . | . . . . . Recycling Units 2 | . 2 . . . Tunnel 2 | . 2 . . . Scanalyzers . | . . . . . Garrison Access . | . . . . . Data Cores Recovered 1 | . . . 1 . Used 1 | . . . 1 . Hacking Detections 4 | . 2 . 2 . Full Trace Events 2 | . 1 . 1 . Feedback Events . | . . . . . Feedback Blocked . | . . . . . Robot Schematics Acquired . | . . . . . Robots Built . | . . . . . Authchips . | . . . . . Time . | . . . . . Total Robot Build Rating . | . . . . . Part Schematics Acquired 1 | . . . 1 . Parts Built . | . . . . . Authchips . | . . . . . Time . | . . . . . Total Part Build Rating . | . . . . . Parts Repaired . | . . . . . Time . | . . . . . Parts Recycled . | . . . . . Recycled Matter . | . . . . . Retrieved Matter . | . . . . . Retrieved Components . | . . . . . Parts Scanalyzed 1 | . . . 1 . Part Schematics Acquired 1 | . . . 1 . Parts Damaged . | . . . . . Bothacking | -11 -10 -10 -8 -8 ------------ Run | Yrd Mat Sub Mat Gar Used RIF Installer . | . . . . . Robots Hacked . | . . . . . Non-combat . | . . . . . Combat . | . . . . . Robot Hacks Applied . | . . . . . Relay Couplers Released . | . . . . . Fabnet Peak Effective % . | . . . . . Robots Rewired . | . . . . . Allies Hacked . | . . . . . Hacks Repelled . | . . . . . Allies | -11 -10 -10 -8 -8 -------- Run | Yrd Mat Sub Mat Gar Total Allies . | . . . . . Largest Group . | . . . . . Highest-Rated Group . | . . . . . Highest-Rated Ally . | . . . . . Total Orders . | . . . . . Ally Attacks . | . . . . . Total Damage . | . . . . . Kills . | . . . . . Allies Corrupted . | . . . . . Allies Melted . | . . . . . Intel | -11 -10 -10 -8 -8 ------- Run | Yrd Mat Sub Mat Gar Active Infowar (turns) 728 | 3 354 66 305 . Terrain 148 | . . . 148 . Seismic 728 | 3 354 66 305 . Robot Analysis Total 2 | . 1 . 1 . Derelict Logs Recovered 1 | . . 1 . . Drone Launches . | . . . . . Drone Recoveries . | . . . . . Exploration | -11 -10 -10 -8 -8 ------------- Run | Yrd Mat Sub Mat Gar Turns Passed 999 | 61 354 66 310 208 Spaces Moved 543 | 31 83 71 131 227 Core 9 | 3 . . . 6 Treads . | . . . . . Legs 62 | . . . 39 23 Wheels 274 | 28 83 71 92 . Hover . | . . . . . Flight 198 | . . . . 198 Fastest Speed 26 | 50 90 90 90 26 Average Speed 73 | 86 90 90 104 41 Slowest Speed 140 | 100 90 90 140 140 Overloaded Moves 113 | . . . . 113 Propulsion Burnouts 2 | . . . . 2 Robots Hopped 2 | . . . . 2 Potential Cave-ins . | . . . . . Cave-ins Triggered . | . . . . . Exploration Rate (%) 15 | 3 16 10 11 38 Regions Visited 4 Branch Regions 1 Pre-discovered Areas 2 | . 2 . . . Known Exits Taken 1 | . . . 1 . Unknown Exits Taken 3 | 1 1 1 . . Scrap Searched . | . . . . . Spaces Dug 4 | . . . 4 . Terrain Destroyed 5 | . . . 5 . Melee . | . . . . . Projectile 5 | . . . 5 . AOE . | . . . . . Terrain Rammed . | . . . . . Walls Destroyed . | . . . . . Machines Disabled . | . . . . . Actions | -11 -10 -10 -8 -8 --------- Run | Yrd Mat Sub Mat Gar Total 1066 | 48 362 72 251 333 Wait 356 | . 280 . 72 4 Move 536 | 30 82 70 131 223 Hop 1 | . . . . 1 Pick Up 23 | 3 . 2 9 9 Fast Attach 7 | 5 . . . 2 Attach 17 | 2 . . 6 9 Detach 1 | . . . . 1 Swap 2 | . . . 2 . Drop 12 | . . . 2 10 Fire 41 | 8 . . 29 4 Melee 2 | . . . . 2 Ram . | . . . . . Kick . | . . . . . Crush . | . . . . . Escape Stasis 68 | . . . . 68 Rewire . | . . . . . Trap . | . . . . . Miscellaneous . | . . . . . Route ------- -11/Scrapyard -10/Materials -10/Subcaves -8/Materials (discovered 2 exits: Sto / Gar) -8/Garrison (discovered 1 exit: [*Mat]) History --------- Turn | Location | Event 35 | -11/Scrapyard | Discovered new exit (range 15) 62 | -11/Scrapyard | Entered Materials 69 | -10/Materials | Central database locked down 308 | -10/Materials | Build established: Mutant 410 | -10/Materials | Discovered new exit (range 8) 416 | -10/Materials | Entered Subcaves 423 | -10/Subcaves | Learned location of 1 exit from Materials 437 | -10/Subcaves | Discovered new exit (range 12) 445 | -10/Subcaves | Shifting Twisted Machinery released Sub. Laser 447 | -10/Subcaves | Shifting Twisted Machinery released Mak. Leg 482 | -10/Subcaves | Entered Materials 482 | -8/Materials | Evolved 4 slots: Utility x3, Weapon x1 483 | -8/Materials | Identified exit to Storage 610 | -8/Materials | Garrison activated, responded to threat 792 | -8/Materials | Identified exit to Garrison 792 | -8/Materials | Entered Garrison 818 | -8/Garrison | Lost 3 parts (2u1w) 890 | -8/Garrison | Triggered checkpoint 924 | -8/Garrison | Triggered checkpoint 936 | -8/Garrison | Triggered checkpoint 960 | -8/Garrison | Discovered new exit (range 15) 964 | -8/Garrison | Attempted to access garrison exit controls, blocked by remote lockdown 971 | -8/Garrison | Core integrity fell below 50% 981 | -8/Garrison | Spotted B-75 Beast 981 | -8/Garrison | Spotted B-75 Beast 998 | -8/Garrison | Core integrity fell below 20% 1000 | -8/Garrison | Destroyed by B-75 Beast with Heavy Plasma Cannon Last Messages --------------- 00983_ B-75 Beast springs to life. 00983_ Field strength at 90. 00984_ Field strength at 85. 00985_ Field strength at 66. 00986_ Field strength at 61. 00987_ Field strength at 56. 00988_ Surge Thruster destroyed. 00991_ Field strength at 40. 00991_ Surge Thruster destroyed. 00992_ Field strength at 16. 00993_ Field strength at 10. 00994_ Field strength at 4. 00994_ Stasis field depleted. 00996_ Acquired 5 matter. 00997_ S-10 Pest destroyed. 00997_ Reaction Control System destroyed. 00997_ Critical hit (Blast). 00998_ Acquired 3 matter. 00999_ G-50 Soldier Carbon-fiber Leg severed. 01000_ G-47 Trooper suffers critical hit (Burn). Map ----- +----------------------------------------------------+ | ???????? #???????????????????????????????????????? | | ???????? #???????????????????????????????????????? | | ??????? #???????????????????????????????????????? | | ?????? #???????????????????????????????????????? | | """"## #???????????????????????????????????????? | | #???????????????????????????????????????? | | #???????????????????????????????????????? | | #???????????????????????????????????????? | | ## #???????????????????????????????????????? | | ## #???????????????????????????????????????? | | "???????????????????????????????????????? | | "???????????????????????????????????????? | | "???????????????????????????????????????? | | "???????????????????????????????????????? | | ## #???????????????????????????????????????? | | ## ###############??????############???????? | | #??????# #???????? | | ######## #???????? | | ##### ###### + #???????? | | ## #???# #????# + #???????? | | ## #???# #????# ######## #???????? | | ###### #???# #????# #??????# #???????? | | ?????# #???# #????# #??????# #???????? | | ?????# ##??# #??#?# #??????# #???????? | | ?????# ##]]# #!!#?# ######## #???????? | | ?????# ## + + #?# g@ *; % BB #???????? | | ?????# ##!!# #!!#?# Yg =%; BB #???????? | | ?????# ##??# #??#?# Y######## Y #???????? | | ?????# #???# #????# #??????# #???????? | | ?????# #???# #????# ???????######+#####???????? | | ?????# #???# #????? ??????????????????????????? | | ?????# #???# #????? ??????????????????????????? | | ?????# #???# #????? ??????????????????????????? | | ?????# ##### #############################?????? | | ?????# *%= #?????? | | ?????# = #?????? | | ?????# #?????? | | ?????#########+################# ####### < #?????? | | ?????????????# #???????????????###?????# #?????? | | ?????????????# #???????????????????????#####?????? | | ?????????????# #?????????????????????????????????? | | ?????????????# #?????????????????????????????????? | | ????????????? #?????????????????????????????????? | | ?????????????###?????????????????????????????????? | | ?????????????????????????????????????????????????? | | ?????????????????????????????????????????????????? | | ?????????????????????????????????????????????????? | | ?????????????????????????????????????????????????? | | ?????????????????????????????????????????????????? | | ?????????????????????????????????????????????????? | +----------------------------------------------------+ Best States ------------- Heat Dissipation 31 Energy Generation 10 Energy Capacity 250 Matter Stores 300 Matter Capacity 300 Sight Range 16 Terrain Scan Range 16 Terrain Scan Density 10 Armor Coverage 150 Evasion (%) 64 Offensive Hacking 10 Item Schematics ----------------- Mak. Leg | -8/Materials | Scanalyzed Robot Schematics ------------------ None Fabricated ------------ Nothing Repaired ---------- Nothing Alien Tech Used ----------------- None Achievements -------------- None Challenges ------------ None Game ------ Seed ChargeChromionStripper Manual? 0 Play Time 00:17:50 Cumulative 66.7 hours Start 2025.05.13 @ 05:27:23 End 2025.05.13 @ 05:40:27 Sessions 1 Manual Loads 0 Difficulty Rogue Special Mode None Game No. 109 Rogue 109 Adventurer 0 Explorer 0 Win Type - Total 0 Types 0/0/0/0/0/0/0/0/0/0 Lore% 28 Gallery% 38 Achievement% 35 Wizard Run 0 Options --------- Layout 0 ASCII 0 Keyboard 0 Movement Mouse Keybinds 0 Fullscreen 2 Font 18/SmallcapsGlow Map View 38x25 Zoom Use 98% Tactical HUD 1 Map Filters NONE Filters NONE Steam 1 RUN: a190efcb-e800-45ba-bad3-e5e2d9c3d567